Workbook

Sheet Disc. Earnings
E1: TSCO 3/18/2014
E4: Initial Earnings | F4: 328.2 | G4: Millions $
B5: =(F4*(1+F6))/(1+F8) -> 344.67 | C5: =getformula(B5) -> <-- =(F4*(1+F6))/(1+F8)
B6: =(F4*(1+F6)^2)/(1+F8)^2 -> 361.96 | C6: =getformula(B6) -> <-- =(F4*(1+F6)^2)/(1+F8)^2 | E6: First stage earnings growth rate | F6: 0.1762 | G6: Percent decimal
B7: =(F4*(1+F6)^3)/(1+F8)^3 -> 380.13 | C7: <-- =(F4*(1+F6)^3)/(1+F8)^3
B8: =(F4*(1+F6)^4)/(1+F8)^4 -> 399.20 | C8: <-- =(F4*(1+F6)^4)/(1+F8)^4 | E8: First stage discount rate | F8: 0.12 | G8: Percent decimal
B9: =(F4*(1+F6)^5)/(1+F8)^5 -> 419.23 | C9: <-- =(F4*(1+F6)^5)/(1+F8)^5
B10: =(F4*(1+F6)^6)/(1+F8)^6 -> 440.27 | C10: <-- =(F4*(1+F6)^6)/(1+F8)^6 | E10: n length, in years of first stage | F10: 10 | G10: Years
B11: =(F4*(1+F6)^7)/(1+F8)^7 -> 462.36 | C11: <-- =(F4*(1+F6)^7)/(1+F8)^7
B12: =(F4*(1+F6)^8)/(1+F8)^8 -> 485.56 | C12: <-- =(F4*(1+F6)^8)/(1+F8)^8
B13: =(F4*(1+F6)^9)/(1+F8)^9 -> 509.93 | C13: <-- =(F4*(1+F6)^9)/(1+F8)^9
B14: =(F4*(1+F6)^10)/(1+F8)^10 -> 535.51 | C14: <-- =(F4*(1+F6)^10)/(1+F8)^10 | E14: Second stage earnings growth | F14: 0.06 | G14: Percent decimal
A16: Discounted Value | B16: =(SUM(B5:B14))/1000 -> $4.34 | C16: =getformula(B16) -> <-- =(SUM(B5:B14))/1000 | E16: Second stage discount rate | F16: 0.12 | G16: Percent decimal
E18: Long Term Debt | F18: 0.012 | G18: Billions $
A20: Continuing Value | B20: =(((F4*(1+F6)^F10)*(1+F14))/(F16-F14)/(1+F8)^F10)/1000 -> $9.46 | C20: =getformula(B20) -> <-- =(((F4*(1+F6)^F10)*(1+F14))/(F16-F14)/(1+F8)^F10)/1000 | E20: Shares Outstanding | F20: 139.7 | G20: Millions of shares
A23: Intrinsic Value | B23: =B16+B20-F18 -> $13.79 | C23: =getformula(B23) -> <-- =B16+B20-F18
A26: Intrinsic Stock Price | B26: =(B23/F20)*1000 -> $98.69 | C26: =getformula(B26) -> <-- =(B23/F20)*1000
C30: Sample program - use at your discretion. I assume no liability or make any promises with regard to this program or is use.
C32: Notice to users: Be careful when switching between millions and billions
C34: All values in column F can be changed. However:
C35: Length of first stage should be left at 10 years
C36: Interest rate in first stage is whatever you wish it to be.
C37: Generally, you want to leave stage 2 earnings growth rate and discount rate alone.

Sheet Div. Disc. Model
C3: Pepsi example - 2 Statge Dividend Discount Model
G6: Initial Dividend | H6: $1.12
E7: =(H6*(1+H8))/(1+H10) -> 1.149217391 | F7: =getformula(E7) -> <-- =(H6*(1+H8))/(1+H10)
E8: =(H6*(1+H8)^2)/(1+H10)^2 -> 1.179196975 | F8: =getformula(E8) -> <-- =(H6*(1+H8)^2)/(1+H10)^2 | G8: First stage dividend growth rate | H8: 0.18
E9: =(H6*(1+H8)^3)/(1+H10)^3 -> 1.209958636 | F9: <-- =(H6*(1+H8)^3)/(1+H10)^3
E10: =(H6*(1+H8)^4)/(1+H10)^4 -> 1.241522774 | F10: <-- =(H6*(1+H8)^4)/(1+H10)^4 | G10: First stage discount rate | H10: 0.15
E11: =(H6*(1+H8)^5)/(1+H10)^5 -> 1.273910325 | F11: <-- =(H6*(1+H8)^5)/(1+H10)^5
E12: =(H6*(1+H8)^6)/(1+H10)^6 -> 1.307142768 | F12: <-- =(H6*(1+H8)^6)/(1+H10)^6 | G12: n length, in years of first stage | H12: 10
E13: =(H6*(1+H8)^7)/(1+H10)^7 -> 1.341242144 | F13: <-- =(H6*(1+H8)^7)/(1+H10)^7
E14: =(H6*(1+H8)^8)/(1+H10)^8 -> 1.37623107 | F14: <-- =(H6*(1+H8)^8)/(1+H10)^8 | G14: n length, in years of first stage | H14: 5
E15: =(H6*(1+H8)^9)/(1+H10)^9 -> 1.41213275 | F15: <-- =(H6*(1+H8)^9)/(1+H10)^9
E16: =(H6*(1+H8)^10)/(1+H10)^10 -> 1.448970996 | F16: <-- =(H6*(1+H8)^10)/(1+H10)^10 | G16: Second stage dividend growth rate | H16: 0.085
F17: <--
D18: 10 Year Value | E18: =SUM(E7:E16) -> $12.94 | F18: <-- =SUM(E7:E16) | G18: Second stage discount rate | H18: 0.105
F19: <--
D20: 5 Year Value | E20: =SUM(E7:E11) -> $6.05 | F20: <-- =SUM(E7:E11)
F21: <--
D22: Continuing Value 10 year | E22: =((H6*(1+H8)^H12)*(1+H16))/(H18-H16)/(1+H10)^H12 -> $78.61 | F22: <-- =((H6*(1+H8)^H12)*(1+H16))/(H18-H16)/(1+H10)^H12
D23: Continuing Value 5 year | E23: =((H6*(1+H8)^H14)*(1+H16))/(H18-H16)/(1+H10)^H14 -> $69.11 | F23: <-- =((H6*(1+H8)^H14)*(1+H16))/(H18-H16)/(1+H10)^H14
F24: <--
D25: Intrinsic Value of Shares 10 year first period | E25: =E18+E22 -> $91.55 | F25: <-- =E18+E22
F26: <--
D27: Intrinsic Value of Shares 5 year first period | E27: =E20+E23 -> $75.16 | F27: <-- =E20+E23
